fUST/lending_fUST_20250804
["ID","MTS","AMOUNT","RATE_DAILY","PERIOD"]
[377278027,1754316639681,-500.0,0.00032873,5]
[377278028,1754316639690,-500.0,0.00032873,5]
[377278029,1754316639700,-410.08634479,0.00032873,5]
[377278030,1754316639711,-500.0,0.00032873,5]
[377278031,1754316639720,-500.0,0.00032873,5]
[377278032,1754316639730,-150.0,0.00032873,5]
[377278033,1754316639740,-157.90205952,0.00032873,5]
[377278034,1754316639749,-500.0,0.00032873,5]
[377278035,1754316639759,-500.0,0.00032873,5]
[377278036,1754316639768,-500.0,0.00032873,5]
[377278037,1754316639779,-502.73213978,0.00032873,5]
[377278038,1754316639788,-500.0,0.00032873,5]
[377278039,1754316639798,-500.0,0.00032873,5]
[377278040,1754316639808,-500.0,0.00032873,5]
[377278041,1754316639817,-501.08011756,0.00032873,5]
[377278042,1754316639827,-500.0,0.00032873,5]
[377278043,1754316639837,-500.0,0.00032873,2]
[377278044,1754316639847,-500.0,0.00032873,5]
[377278045,1754316639857,-460.0,0.00032876,2]
[377278046,1754316639867,-460.0,0.00032876,2]
[377278047,1754316639877,-460.34314774,0.00032876,2]
[377278048,1754316639887,-460.0,0.00032876,2]
[377278049,1754316639896,-460.0,0.00032876,2]
[377278050,1754316639907,-460.0,0.00032876,2]
[377278051,1754316639917,-460.0,0.00032876,2]
[377278052,1754316639927,-460.0,0.00032876,2]
[377278053,1754316639938,-460.0,0.00032876,2]
[377278054,1754316639947,-462.06423606,0.00032876,2]
[377278056,1754316639956,-460.0,0.00032876,2]
[377278057,1754316639965,-464.74346297,0.00032876,2]
[377278059,1754316639975,-500.0,0.00032876,2]
[377278060,1754316640117,-460.0,0.00032876,2]
[377278061,1754316640126,-460.0,0.00032876,2]
[377278062,1754316640136,-460.0,0.00032876,2]
[377278063,1754316640146,-460.0,0.00032876,2]
[377278064,1754316640155,-460.0,0.00032876,2]
[377278065,1754316640165,-480.62445239,0.00032876,2]
[377278066,1754316640175,-477.66382342,0.00032876,2]
[377278067,1754316640184,-460.0,0.00032876,2]
[377278068,1754316640194,-469.12053159,0.00032876,2]
[377278069,1754316640203,-460.0,0.00032876,2]
[377278070,1754316640213,-460.0,0.00032876,2]
[377278071,1754316640222,-460.0,0.00032876,2]
[377278072,1754316640232,-460.0,0.00032876,2]
[377278073,1754316640241,-460.0,0.00032876,2]
[377278074,1754316640251,-460.0,0.00032876,2]
[377278075,1754316640260,-175.69893356,0.00032876,2]
[377278076,1754316640270,-153.63079156,0.00032876,2]
[377278077,1754316640280,-460.0,0.00032876,2]
[377278078,1754316640290,-460.0,0.00032876,2]
[377278079,1754316640300,-385.48514091,0.00032876,2]
[377278080,1754316640309,-460.0,0.00032876,2]
[377278081,1754316640319,-460.0,0.00032876,2]
[377278082,1754316640329,-460.0,0.00032876,2]
[377278083,1754316640339,-460.0,0.00032876,2]
[377278084,1754316640348,-460.0,0.00032876,2]
[377278085,1754316640358,-460.0,0.00032876,2]
[377278086,1754316640368,-461.33030424,0.00032876,2]
[377278087,1754316640378,-587.52,0.00032876,2]
[377278088,1754316640387,-460.0,0.00032876,2]
[377278089,1754316640397,-460.0,0.00032876,2]
[377278090,1754316640406,-466.43972615,0.00032876,2]
[377278091,1754316640414,-460.0,0.00032876,2]
[377278092,1754316640424,-460.0,0.00032876,2]
[377278093,1754316640434,-460.0,0.00032876,2]
[377278094,1754316640443,-460.0,0.00032876,2]
[377278095,1754316640452,-460.0,0.00032876,2]
[377278096,1754316640462,-460.0,0.00032876,2]
[377278097,1754316640472,-460.0,0.00032876,2]
[377278098,1754316640481,-460.0,0.00032876,2]
[377278099,1754316640491,-306.63517997,0.00032876,2]
[377278100,1754316640500,-460.0,0.00032876,2]
[377278101,1754316640510,-460.0,0.00032876,2]
[377278102,1754316640519,-460.0,0.00032876,2]
[377278103,1754316640530,-462.22366267,0.00032876,2]
[377278104,1754316640540,-460.0,0.00032876,2]
[377278105,1754316640549,-460.0,0.00032876,2]
[377278106,1754316640558,-460.0,0.00032876,2]
[377278107,1754316640568,-460.0,0.00032876,2]
[377278108,1754316640577,-461.21122128,0.00032876,2]
[377278109,1754316640587,-460.0,0.00032876,2]
[377278110,1754316640596,-556.23,0.00032876,2]
[377278111,1754316640606,-516.50888162,0.00032876,2]
[377278112,1754316640615,-460.0,0.00032876,2]
[377278113,1754316640624,-460.0,0.00032876,2]
[377278114,1754316640634,-460.0,0.00032876,2]
[377278115,1754316640644,-1007.11,0.00032876,2]
[377278116,1754316640653,-460.0,0.00032876,2]
[377278117,1754316640663,-460.0,0.00032876,2]
[377278118,1754316640673,-596.33,0.00032876,2]
[377278119,1754316640683,-460.0,0.00032876,2]
[377278120,1754316640692,-460.0,0.00032876,2]
[377278121,1754316640702,-460.0,0.00032876,2]
[377278122,1754316640712,-460.0,0.00032876,2]
[377278123,1754316640722,-460.0,0.00032876,2]
[377278124,1754316640732,-460.0,0.00032876,2]
[377278125,1754316640741,-461.84903361,0.00032876,2]
[377278126,1754316640751,-460.0,0.00032876,2]
[377278127,1754316640760,-460.0,0.00032876,2]
[377278128,1754316640770,-460.0,0.00032876,2]
[377278129,1754316640779,-460.0,0.00032876,2]
[377278130,1754316640788,-460.0,0.00032876,2]
[377278131,1754316640798,-460.0,0.00032876,2]
[377278132,1754316640807,-460.0,0.00032876,2]
[377278133,1754316640817,-1057.6,0.00032876,2]
[377278134,1754316640826,-463.65191568,0.00032876,2]
[377278135,1754316640836,-460.0,0.00032876,2]
[377278136,1754316640845,-537.22434244,0.00032876,2]
[377278137,1754316640855,-460.0,0.00032876,2]
[377278138,1754316640864,-460.0,0.00032876,2]
[377278139,1754316640874,-460.0,0.00032876,2]
[377278140,1754316640884,-1278.5,0.00032876,2]
[377278141,1754316640894,-465.14594053,0.00032876,2]
[377278142,1754316640904,-460.0,0.00032876,2]
[377278143,1754316640913,-460.0,0.00032876,2]
[377278144,1754316640923,-460.0,0.00032876,2]
[377278145,1754316640933,-460.0,0.00032876,2]
[377278146,1754316640942,-460.0,0.00032876,2]
[377278147,1754316640951,-460.0,0.00032876,2]
[377278148,1754316640962,-599.14,0.00032876,2]
[377278149,1754316640971,-460.0,0.00032876,2]
[377278150,1754316640981,-500.0,0.00032876,2]
[377278151,1754316640993,-500.0,0.00032876,2]
[377278152,1754316641011,-500.0,0.00032876,2]
[377278153,1754316641022,-467.99659535,0.00032876,2]
[377278154,1754316641033,-507.5,0.00032876,2]
[377278155,1754316641043,-460.0,0.00032876,2]
[377278156,1754316641052,-460.0,0.00032876,2]
[377278157,1754316641062,-460.0,0.00032876,2]
[377278158,1754316641073,-460.0,0.00032876,2]
[377278159,1754316641084,-460.0,0.00032876,2]
[377278160,1754316641093,-460.0,0.00032876,2]
[377278161,1754316641103,-460.0,0.00032876,2]
[377278162,1754316641112,-460.0,0.00032876,2]
[377278163,1754316641122,-9161.73,0.00032876,2]
[377278164,1754316641132,-460.0,0.00032876,2]
[377278165,1754316641142,-463.99405965,0.00032876,2]
[377278166,1754316641151,-220.0,0.00032876,2]
[377278167,1754316641161,-750.79,0.00032876,2]
[377278168,1754316641170,-460.0,0.00032876,2]
[377278169,1754316641180,-460.0,0.00032876,2]
[377278170,1754316641189,-460.0,0.00032876,2]
[377278171,1754316641198,-460.0,0.00032876,2]
[377278172,1754316641208,-480.35,0.00032876,2]
[377278173,1754316641218,-460.0,0.00032876,2]
[377278174,1754316641227,-460.0,0.00032876,2]
[377278175,1754316641236,-460.0,0.00032876,2]
[377278176,1754316641246,-1605.31,0.00032876,2]
[377278177,1754316641256,-460.0,0.00032876,2]
[377278178,1754316641266,-460.0,0.00032876,2]
[377278179,1754316641275,-219.36,0.00032876,2]
[377278181,1754316641286,-387.81685737,0.00032876,2]
[377278183,1754316641296,-460.0,0.00032876,2]
[377278185,1754316641306,-460.0,0.00032876,2]
[377278187,1754316641316,-460.0,0.00032876,2]
[377278189,1754316641325,-460.0,0.00032876,2]
[377278191,1754316641335,-460.0,0.00032876,2]
[377278193,1754316641345,-460.0,0.00032876,2]
[377278195,1754316641354,-460.0,0.00032876,2]
[377278197,1754316641363,-460.0,0.00032876,2]
[377278199,1754316641373,-460.0,0.00032876,2]
[377278200,1754316641382,-460.0,0.00032876,2]
[377278201,1754316641392,-460.0,0.00032876,2]
[377278202,1754316641401,-460.0,0.00032876,2]
[377278203,1754316641411,-460.0,0.00032876,2]
[377278204,1754316641421,-473.05,0.00032876,2]
[377278205,1754316641430,-739.1,0.00032876,2]
[377278206,1754316641440,-460.0,0.00032876,2]
[377278208,1754316641449,-460.0,0.00032876,2]
[377278209,1754316641459,-460.0,0.00032876,2]
[377278210,1754316641479,-464.95034338,0.00032876,2]
[377278212,1754316641490,-462.54,0.00032876,2]
[377278213,1754316641500,-460.0,0.00032876,2]
[377278214,1754316641510,-460.0,0.00032876,2]
[377278215,1754316641520,-460.0,0.00032876,2]
[377278216,1754316641532,-460.0,0.00032876,2]
[377278217,1754316641542,-460.0,0.00032876,2]
[377278218,1754316641552,-599.3,0.00032876,2]
[377278219,1754316641562,-460.0,0.00032876,2]
[377278220,1754316641572,-190.66141935,0.00032876,2]
[377278221,1754316641582,-460.0,0.00032876,2]
[377278222,1754316641592,-460.0,0.00032876,2]
[377278223,1754316641602,-379.16261929,0.00032876,2]
[377278224,1754316641612,-460.0,0.00032876,2]
[377278225,1754316641622,-460.0,0.00032876,2]
[377278226,1754316641632,-460.0,0.00032876,2]
[377278227,1754316641642,-460.0,0.00032876,2]
[377278228,1754316641652,-1294.03,0.00032876,2]
[377278229,1754316641662,-460.0,0.00032876,2]
[377278230,1754316641674,-460.0,0.00032876,2]
[377278231,1754316641684,-460.0,0.00032876,2]
[377278232,1754316641694,-500.39,0.00032876,2]
[377278233,1754316641705,-500.39,0.00032876,2]
[377278234,1754316641715,-500.39,0.00032876,2]
[377278235,1754316641725,-500.39,0.00032876,2]
[377278236,1754316641735,-500.39,0.00032876,2]
[377278237,1754316641746,-500.39,0.00032876,2]
[377278238,1754316641756,-460.0,0.00032876,2]
[377278239,1754316641766,-460.0,0.00032876,2]
[377278240,1754316641776,-500.39,0.00032876,2]
[377278241,1754316641787,-460.0,0.00032876,2]
[377278242,1754316641797,-460.0,0.00032876,2]
[377278243,1754316641807,-500.39,0.00032876,2]
[377278244,1754316641817,-461.6433624,0.00032876,2]
[377278245,1754316641827,-500.39,0.00032876,2]
[377278246,1754316641837,-468.52128178,0.00032876,2]
[377278247,1754316641849,-500.39,0.00032876,2]
[377278248,1754316641860,-500.39,0.00032876,2]
[377278249,1754316641870,-500.39,0.00032876,2]
[377278250,1754316641880,-460.0,0.00032876,2]
[377278251,1754316641889,-500.39,0.00032876,2]
[377278252,1754316641900,-500.39,0.00032876,2]
[377278253,1754316641910,-500.39,0.00032876,2]
[377278254,1754316641920,-500.39,0.00032876,2]
[377278255,1754316641932,-500.39,0.00032876,2]
[377278256,1754316641941,-460.0,0.00032876,2]
[377278257,1754316641951,-500.39,0.00032876,2]
[377278258,1754316641961,-460.0,0.00032876,2]
[377278259,1754316641971,-1169.29,0.00032876,2]
[377278260,1754316641981,-472.19115773,0.00032876,2]
[377278261,1754316641995,-500.39,0.00032876,2]
[377278262,1754316642005,-500.39,0.00032876,2]
[377278263,1754316642015,-500.39,0.00032876,2]
[377278264,1754316642024,-500.39,0.00032876,2]
[377278266,1754316642037,-500.39,0.00032876,2]
[377278268,1754316642047,-460.0,0.00032876,2]
[377278270,1754316642056,-500.59034802,0.00032876,2]
[377278271,1754316642067,-463.6596394,0.00032876,2]
[377278273,1754316642078,-460.0,0.00032876,2]
[377278275,1754316642088,-460.0,0.00032876,2]
[377278278,1754316642098,-460.0,0.00032876,2]
[377278279,1754316642113,-460.0,0.00032876,2]
[377278281,1754316642123,-460.0,0.00032876,2]
[377278283,1754316642133,-1207.21,0.00032876,2]
[377278285,1754316642143,-463.67301506,0.00032876,2]
[377278287,1754316642152,-494.56,0.00032876,2]
[377278289,1754316642162,-460.0,0.00032876,2]
[377278291,1754316642172,-460.0,0.00032876,2]
[377278293,1754316642181,-460.0,0.00032876,2]
[377278295,1754316642191,-460.0,0.00032876,2]
[377278297,1754316642201,-1264.88,0.00032876,2]
[377278299,1754316642211,-3108.86,0.00032876,2]
[377278301,1754316642220,-460.0,0.00032876,2]
[377278303,1754316642230,-460.0,0.00032876,2]
[377278305,1754316642240,-325.1100594,0.00032876,2]
[377278307,1754316642250,-460.0,0.00032876,2]
[377278309,1754316642260,-462.52544459,0.00032876,2]
[377278311,1754316642270,-460.0,0.00032876,2]
[377278313,1754316642279,-460.0,0.00032876,2]
[377278314,1754316642289,-237.00439927,0.00032876,2]
[377278316,1754316642299,-460.0,0.00032876,2]
[377278317,1754316642308,-460.0,0.00032876,2]
[377278319,1754316642318,-463.7454622,0.00032876,2]
[377278320,1754316642328,-460.0,0.00032876,2]
[377278322,1754316642337,-780.78,0.00032876,2]
[377278323,1754316642347,-9159.47,0.00032876,2]
[377278325,1754316642357,-460.0,0.00032876,2]
[377278326,1754316642366,-460.0,0.00032876,2]
[377278328,1754316642376,-460.0,0.00032876,2]
[377278330,1754316642386,-460.0,0.00032876,2]
[377278331,1754316642396,-460.0,0.00032876,2]
[377278333,1754316642406,-460.0,0.00032876,2]
[377278334,1754316642415,-460.0,0.00032876,2]
[377278336,1754316642425,-515.58,0.00032876,2]
[377278337,1754316642435,-460.0,0.00032876,2]
[377278339,1754316642444,-460.0,0.00032876,2]
[377278340,1754316642454,-460.0,0.00032876,2]
[377278342,1754316642467,-460.0,0.00032876,2]
[377278343,1754316642477,-460.0,0.00032876,2]
[377278345,1754316642488,-199.42352605,0.00032876,2]
[377278346,1754316642497,-460.0,0.00032876,2]
[377278348,1754316642507,-460.0,0.00032876,2]
[377278350,1754316642516,-460.0,0.00032876,2]
[377278351,1754316642526,-709.35,0.00032876,2]
[377278353,1754316642536,-460.0,0.00032876,2]
[377278355,1754316642546,-733.65,0.00032876,2]
[377278356,1754316642556,-460.0,0.00032876,2]
[377278358,1754316642566,-460.0,0.00032876,2]
[377278359,1754316642576,-460.0,0.00032876,2]
[377278361,1754316642586,-460.0,0.00032876,2]
[377278362,1754316642596,-317.16495895,0.00032876,2]
[377278373,1754316642741,-529.02,0.00032876,2]
[377278374,1754316642751,-481.39,0.00032876,2]
[377278376,1754316642761,-460.0,0.00032876,2]
[377278377,1754316642770,-573.75347117,0.00032876,2]
[377278379,1754316642779,-965.33,0.00032876,2]
[377278381,1754316642788,-460.0,0.00032876,2]
[377278382,1754316642798,-460.0,0.00032876,2]
[377278384,1754316642807,-1386.02,0.00032876,2]
[377278385,1754316642816,-1219.94,0.00032876,2]
[377278387,1754316642826,-460.0,0.00032876,2]
[377278389,1754316642835,-460.0,0.00032876,2]
[377278390,1754316642845,-460.0,0.00032876,2]
[377278392,1754316642854,-460.0,0.00032876,2]
[377278393,1754316642864,-460.0,0.00032876,2]
[377278395,1754316642874,-551.78,0.00032876,2]
[377278397,1754316642883,-460.0,0.00032876,2]
[377278398,1754316642892,-930.95,0.00032876,2]
[377278400,1754316642901,-460.0,0.00032876,2]
[377278402,1754316642911,-3982.62,0.00032876,2]
[377278403,1754316642920,-431.46562204,0.00032876,2]
[377278405,1754316642929,-460.0,0.00032876,2]
[377278406,1754316642939,-460.0,0.00032876,2]
[377278408,1754316642948,-526.02,0.00032876,2]
[377278410,1754316642957,-591.85,0.00032876,2]
[377278411,1754316642967,-9274.27,0.00032876,2]
[377278413,1754316642976,-5364.1,0.00032876,2]
[377278415,1754316642986,-460.0,0.00032876,2]
[377278416,1754316642996,-516.98428892,0.00032876,2]
[377278419,1754316643006,-460.0,0.00032876,2]
[377278421,1754316643015,-460.0,0.00032876,2]
[377278424,1754316643025,-460.0,0.00032876,2]
[377278426,1754316643036,-460.0,0.00032876,2]
[377278428,1754316643046,-460.0,0.00032876,2]
[377278430,1754316643055,-460.0,0.00032876,2]
[377278431,1754316643065,-460.0,0.00032876,2]
[377278434,1754316643077,-460.0,0.00032876,2]
[377278436,1754316643086,-460.0,0.00032876,2]
[377278437,1754316643096,-460.0,0.00032876,2]
[377278439,1754316643105,-460.0,0.00032876,2]
[377278440,1754316643115,-460.0,0.00032876,2]
[377278442,1754316643124,-391.32729866,0.00032876,2]
[377278444,1754316643134,-460.0,0.00032876,2]
[377278445,1754316643143,-460.0,0.00032876,2]
[377278447,1754316643153,-460.0,0.00032876,2]
[377278448,1754316643163,-460.0,0.00032876,2]
[377278450,1754316643172,-460.0,0.00032876,2]
[377278452,1754316643182,-856.49,0.00032876,2]
[377278454,1754316643192,-460.0,0.00032876,2]
[377278457,1754316643202,-460.0,0.00032876,2]
[377278460,1754316643213,-261.64411675,0.00032876,2]
[377278462,1754316643223,-930.07,0.00032876,2]
[377278465,1754316643233,-695.73,0.00032876,2]
[377278466,1754316643242,-460.0,0.00032876,2]
[377278468,1754316643252,-460.0,0.00032876,2]
[377278469,1754316643261,-1154.8,0.00032876,2]
[377278471,1754316643271,-460.0,0.00032876,2]
[377278473,1754316643282,-460.0,0.00032876,2]
[377278474,1754316643292,-460.0,0.00032876,2]
[377278476,1754316643301,-466.5560086,0.00032876,2]
[377278477,1754316643311,-239.54848343,0.00032876,2]
[377278479,1754316643320,-460.0,0.00032876,2]
[377278480,1754316643329,-460.0,0.00032876,2]
[377278482,1754316643339,-460.0,0.00032876,2]
[377278484,1754316643348,-651.47,0.00032876,2]
[377278485,1754316643358,-2270.35,0.00032876,2]
[377278487,1754316643367,-460.0,0.00032876,2]
[377278489,1754316643376,-460.0,0.00032876,2]
[377278490,1754316643387,-460.0,0.00032876,2]
[377278492,1754316643396,-460.0,0.00032876,2]
[377278493,1754316643405,-460.0,0.00032876,2]
[377278495,1754316643415,-607.93,0.00032876,2]
[377278496,1754316643424,-1069.09,0.00032876,2]
[377278498,1754316643433,-460.0,0.00032876,2]
[377278500,1754316643441,-1033.39,0.00032876,2]
[377278501,1754316643450,-460.0,0.00032876,2]
[377278503,1754316643460,-460.0,0.00032876,2]
[377278504,1754316643469,-913.86,0.00032876,2]
[377278506,1754316643479,-460.0,0.00032876,2]
[377278508,1754316643488,-460.0,0.00032876,2]
[377278509,1754316643498,-460.0,0.00032876,2]
[377278511,1754316643507,-802.81,0.00032876,2]
[377278513,1754316643517,-726.74,0.00032876,2]
[377278514,1754316643527,-1147.99,0.00032876,2]
[377278516,1754316643538,-4540.55,0.00032876,2]
[377278518,1754316643548,-234.94253968,0.00032876,2]
[377278519,1754316643557,-1572.21,0.00032876,2]
[377278521,1754316643567,-460.0,0.00032876,2]
[377278522,1754316643576,-460.0,0.00032876,2]
[377278525,1754316643586,-460.0,0.00032876,2]
[377278527,1754316643595,-460.0,0.00032876,2]
[377278528,1754316643605,-782.19,0.00032876,2]
[377278530,1754316643615,-460.0,0.00032876,2]
[377278531,1754316643625,-673.84,0.00032876,2]
[377278533,1754316643635,-460.0,0.00032876,2]
[377278535,1754316643645,-601.05,0.00032876,2]
[377278536,1754316643654,-460.0,0.00032876,2]
[377278538,1754316643664,-460.0,0.00032876,2]
[377278539,1754316643674,-460.0,0.00032876,2]
[377278541,1754316643684,-460.0,0.00032876,2]
[377278543,1754316643694,-460.0,0.00032876,2]
[377278544,1754316643703,-460.0,0.00032876,2]
[377278546,1754316643713,-460.0,0.00032876,2]
[377278548,1754316643723,-460.0,0.00032876,2]
[377278549,1754316643732,-460.0,0.00032876,2]
[377278551,1754316643742,-3099.74,0.00032876,2]
[377278552,1754316643751,-460.0,0.00032876,2]
[377278554,1754316643760,-460.0,0.00032876,2]
[377278556,1754316643770,-460.0,0.00032876,2]
[377278557,1754316643780,-2316.25,0.00032876,2]
[377278559,1754316643790,-1494.05,0.00032876,2]
[377278561,1754316643800,-460.0,0.00032876,2]
[377278562,1754316643809,-3423.83,0.00032876,2]
[377278564,1754316643819,-460.0,0.00032876,2]
[377278566,1754316643830,-460.0,0.00032876,2]
[377278567,1754316643840,-738.42,0.00032876,2]
[377278569,1754316643850,-500.0,0.00032876,2]
[377278570,1754316643859,-352.83236092,0.00032876,2]
[377278572,1754316643868,-460.0,0.00032876,2]
[377278574,1754316643878,-460.0,0.00032876,2]
[377278575,1754316643887,-460.0,0.00032876,2]
[377278577,1754316643897,-3445.67,0.00032876,2]
[377278578,1754316643906,-8730.47,0.00032876,2]
[377278580,1754316643916,-460.0,0.00032876,2]
[377278582,1754316643925,-834.81,0.00032876,2]
[377278583,1754316643935,-460.0,0.00032876,2]
[377278585,1754316643944,-460.0,0.00032876,2]
[377278586,1754316643954,-460.0,0.00032876,2]
[377278588,1754316643964,-460.0,0.00032876,2]
[377278590,1754316643976,-460.0,0.00032876,2]
[377278591,1754316643988,-460.47170879,0.00032876,2]
[377278593,1754316644001,-723.55,0.00032876,2]
[377278594,1754316644011,-460.0,0.00032876,2]
[377278596,1754316644021,-469.0001293,0.00032876,2]
[377278598,1754316644032,-460.0,0.00032876,2]
[377278599,1754316644043,-460.0,0.00032876,2]
[377278601,1754316644052,-460.0,0.00032876,2]
[377278602,1754316644062,-460.0,0.00032876,2]
[377278604,1754316644072,-460.0,0.00032876,2]
[377278606,1754316644082,-460.0,0.00032876,2]
[377278607,1754316644092,-368.83927821,0.00032876,2]
[377278609,1754316644102,-1619.63,0.00032876,2]
[377278611,1754316644111,-460.0,0.00032876,2]
[377278612,1754316644120,-460.0,0.00032876,2]
[377278614,1754316644131,-965.76,0.00032876,2]
[377278616,1754316644141,-460.0,0.00032876,2]
[377278617,1754316644150,-180.22914868,0.00032876,2]
[377278619,1754316644160,-460.0,0.00032876,2]
[377278620,1754316644170,-609.68,0.00032876,2]
[377278622,1754316644180,-553.11,0.00032876,2]
[377278624,1754316644190,-461.09469524,0.00032876,2]
[377278625,1754316644199,-460.0,0.00032876,2]
[377278627,1754316644209,-460.0,0.00032876,2]
[377278629,1754316644218,-460.0,0.00032876,2]
[377278630,1754316644227,-502.08615837,0.00032876,2]
[377278632,1754316644237,-460.0,0.00032876,2]
[377278634,1754316644247,-964.21,0.00032876,2]
[377278635,1754316644256,-460.0,0.00032876,2]
[377278637,1754316644266,-460.0,0.00032876,2]
[377278639,1754316644276,-460.0,0.00032876,2]
[377278640,1754316644289,-1007.66,0.00032876,2]
[377278644,1754316644299,-460.0,0.00032876,2]
[377278645,1754316644308,-460.0,0.00032876,2]
[377278647,1754316644318,-460.0,0.00032876,2]
[377278649,1754316644327,-1077.44,0.00032876,2]
[377278650,1754316644336,-460.0,0.00032876,2]
[377278652,1754316644345,-6225.85,0.00032876,2]
[377278654,1754316644354,-500.0,0.00032877,5]
[377278655,1754316644364,-892.64,0.000329,7]
[377278657,1754316644373,-39126.67,0.000329,14]
[377278658,1754316644383,-151.0,0.0003293,14]
[377278660,1754316644392,-151.0,0.0003293,14]
[377278662,1754316644402,-154.441478,0.0003293,14]
[377278663,1754316644411,-185.0,0.00032964,6]
[377278665,1754316644421,-151.0,0.0003299,14]
[377278666,1754316644430,-151.0,0.0003299,14]
[377278668,1754316644439,-151.0,0.0003299,14]
[377278670,1754316644449,-6195.49,0.00033,14]
[377278671,1754316644458,-2493.68,0.00033,7]
[377278674,1754316644467,-153.686334,0.00033,14]
[377278676,1754316644476,-151.0,0.00033,14]
[377278677,1754316644485,-3945.07854477,0.00033072,28]
[377278679,1754316644495,-761.88303174,0.00033146,2]
[377278680,1754316644504,-2626.70154391,0.0003315,2]
[377278682,1754316644513,-151.0,0.0003315,14]
[377278684,1754316644523,-151.0,0.0003315,14]
[377278685,1754316644534,-151.0,0.0003315,14]
[377278687,1754316644544,-151.0,0.0003315,14]
[377278689,1754316644553,-151.0,0.0003315,14]
[377278690,1754316644562,-151.0,0.0003315,14]
[377278692,1754316644572,-151.0,0.0003315,14]
[377278694,1754316644582,-151.0,0.0003315,14]
[377278696,1754316644592,-151.0,0.0003315,14]
[377278698,1754316644602,-240.883682,0.0003315,14]
[377278700,1754316644614,-151.0,0.0003315,14]
[377278702,1754316644624,-151.0,0.0003315,14]
[377278704,1754316644634,-151.0,0.0003315,14]
[377278706,1754316644643,-151.0,0.0003315,14]
[377278708,1754316644653,-460.0,0.0003315,2]
[377278710,1754316644663,-460.0,0.0003315,2]
[377278712,1754316644672,-460.0,0.0003315,2]
[377278714,1754316644681,-460.0,0.0003315,2]
[377278716,1754316644690,-573.318853,0.0003315,2]
[377278718,1754316644700,-460.0,0.0003315,2]
[377278720,1754316644710,-550.70363282,0.0003315,2]
[377278722,1754316644719,-151.0,0.0003315,14]
[377278724,1754316644729,-460.0,0.0003315,2]
[377278726,1754316644739,-460.0,0.0003315,2]
[377278728,1754316644748,-460.0,0.0003315,2]
[377278730,1754316644757,-460.0,0.0003315,2]
[377278731,1754316644767,-460.0,0.0003315,2]
[377278733,1754316644776,-460.0,0.0003315,2]
[377278735,1754316644786,-460.0,0.0003315,2]
[377278737,1754316644795,-460.0,0.0003315,2]
[377278740,1754316644804,-460.0,0.0003315,2]
[377278743,1754316644814,-460.0,0.0003315,2]
[377278747,1754316644824,-460.0,0.0003315,2]
[377278752,1754316644834,-587.52,0.0003315,2]
[377278755,1754316644843,-460.0,0.0003315,2]
[377278759,1754316644853,-460.0,0.0003315,2]